Cogmind - Beta 16 @@@ ROGUE MODE // 2025.11.21 @ 18:44:46 Player: C0-2MO Result: Destroyed by 81-M6G(R) with Subdweller Beam Cannon Performance ------------- Evolutions (0) 0 Regions Visited (2) 400 Robots Destroyed (28) 140 Value Destroyed (649) 649 Prototype IDs (0) 0 Alien Tech Used (0) 0 Bonus (0) 0 TOTAL SCORE: 1189 Bonus ------- None Cogmind --------- Core Integrity 0/250 Matter 235/300 Energy 100/100 System Corruption 0% Temperature Cool (9) Movement Core (550) Ox10 Location -10/Subcaves Parts ------- > --- POWER (1) -------- (None) > --- PROPULSION (2) --- (None) > --- UTILITY (2) ------ Large Storage Unit Hardened Light Armor Plating > --- WEAPON (2) ------- Heavy Assault Rifle Subdweller Machine Gun > --- INVENTORY (15) --- Aluminum Leg Aluminum Leg Aluminum Leg Hardened Light Armor Plating Hardened Light Armor Plating Heavy Assault Rifle Heavy Assault Rifle Mini Grenade Launcher Plasma Cutter Flail Flail Flail Peak State ------------ > --- POWER ------------ Ion Engine > --- PROPULSION ------- Light Treads Light Treads > --- UTILITY ---------- Large Storage Unit Hardened Light Armor Plating > --- WEAPON ----------- Flail Flail > --- INVENTORY -------- Hardened Light Armor Plating Hardened Light Armor Plating Hardened Light Armor Plating Medium Laser Heavy Assault Rifle Heavy Assault Rifle Heavy Assault Rifle Mini Grenade Launcher Plasma Cutter Flail Flail [Rating: 12] Favorites ----------- Power Ion Engine Engine Ion Engine Propulsion Light Treads Treads Light Treads Utility Hardened Light Armor Plating Storage Large Storage Unit Protection Hardened Light Armor Plating Weapon Flail Energy Gun Medium Laser Ballistic Gun Light Assault Rifle Impact Weapon Flail Build | -11 -10 -10 ------- Run | Yrd Mat Sub Slots Evolved . | . . . Power . | . . . Propulsion . | . . . Utility . | . . . Weapon . | . . . Parts Attached 18 | 6 7 5 Power 3 | 1 2 . Engine 3 | 1 2 . Core . | . . . Reactor . | . . . Propulsion 4 | 2 1 1 Treads 4 | 2 1 1 Leg . | . . . Wheel . | . . . Hover . | . . . Flight . | . . . Utility 4 | 1 2 1 Device . | . . . Storage 2 | 1 1 . Processor . | . . . Hackware . | . . . Protection 2 | . 1 1 Artifact . | . . . Weapon 7 | 2 2 3 Energy Gun 1 | 1 . . Energy Cannon . | . . . Ballistic Gun 3 | 1 . 2 Ballistic Cannon . | . . . Launcher . | . . . Special Weapon . | . . . Impact Weapon 3 | . 2 1 Slashing Weapon . | . . . Piercing Weapon . | . . . Special Melee Weapon . | . . . Unidentified Prototypes . | . . . Parts Lost 7 | . 2 5 Power 2 | . 1 1 Propulsion 4 | . 1 3 Utility . | . . . Weapon 1 | . . 1 Highest Loss Streak 5 | . 1 5 To Critical Strikes . | . . . Average Backups 11 | . 12 13 Power . | . . . Propulsion 2 | . 2 3 Utility 2 | . 2 2 Weapon 5 | . 5 6 Tool/Special . | . . . Unused Backups 10 | . . 10 Power . | . . . Propulsion 3 | . . 3 Utility 2 | . . 2 Weapon 4 | . . 4 Tool/Special 1 | . . 1 Average Slot Usage (%) 98 | . 98 91 Engine 13 | . 13 9 Treads 27 | . 27 24 Storage 14 | . 14 14 Protection 13 | . 13 13 Impact Weapon 26 | . 26 24 Peak Build Rating 12 | 6 12 12 Average Rating 11 | 4 11 11 On Entrance 6 | . 6 12 Avg Prop Armor Cover (%) . | . . . Naked Turns . | . . . Heaviest Build 34 | 13 34 34 Greatest Support 40 | 40 40 40 Greatest Overweight (x) . | . . . Average Overweight (x) . | . . . Largest Inventory Capacity 15 | 8 15 15 Average Capacity 14 | 6 14 15 Most Carried 15 | . 15 15 Average Carried 11 | . 12 13 Final Capacity 15 | 8 15 15 Final Carried 14 | . 14 12 Class Distribution -------------------- 100% | Mutant Dominant Class ---------------- Mutant | -10/Materials Mutant | -10/Subcaves Resources | -11 -10 -10 ----------- Run | Yrd Mat Sub Matter Collected 328 | 263 65 . Remotely . | . . . Salvage Created 925 | 89 786 50 Parts 26 | 1 25 . Haulers Intercepted 2 | . 2 . Recyclers Shooed . | . . . Parts Field Recycled . | . . . Retrieved Matter . | . . . Parts Self-Destructed 11 | . . 11 Prevented . | . . . Parts Restored . | . . . Kills | -11 -10 -10 ------- Run | Yrd Mat Sub Combat Hostiles Destroyed 20 | . 19 1 Melee 12 | . 11 1 Classes Destroyed 7 | 1 5 1 Hauler 2 | . 2 . Recycler 3 | 1 2 . Operator 1 | . 1 . Watcher 2 | . 2 . Swarmer 5 | . 5 . Grunt 14 | . 14 . Subdweller 1 | . . 1 Best Kill Streak 8 | 1 8 1 Combat Bots Only 6 | . 6 1 Max Kills in Single Turn 1 | 1 1 1 Gunslinging . | . . . Exploded . | . . . Melee 1 | . 1 1 Uniques/NPCs Destroyed . | . . . Combat | -11 -10 -10 -------- Run | Yrd Mat Sub Hostile Shots Fired 121 | . 80 41 Missed 27 | . 16 11 Hits 94 | . 64 30 Projectile 94 | . 64 30 Critical Strikes 2 | . . 2 Damage Taken 1474 | . 652 822 Core 265 | . 127 138 Absorbed by Shields . | . . . Core Remaining (%) 100 | 100 . . Volleys Fired 10 | 3 . 7 Largest 2 | 2 . 2 Hottest 70 | 70 . 53 Shots Fired 20 | 6 . 14 Gun 20 | 6 . 14 Cannon . | . . . Launcher . | . . . Special . | . . . Kinetic 17 | 3 . 14 Thermal 3 | 3 . . Explosive . | . . . Electromagnetic . | . . . Robot Hit Streak 19 | 5 . 19 Robot Miss Streak 1 | 1 . . Penetration Max . | . . . Secondary Targets . | . . . Shots Hit Robots 78 | 5 54 19 Core Hits 13 | 2 9 2 Critical Kills 1 | . 1 . Critical Parts Destroyed 5 | 1 3 1 Critical Strikes 6 | 1 4 1 Destroy 1 | 1 . . Smash 5 | . 4 1 Melee Attacks 114 | . 101 13 Impact 114 | . 101 13 Slashing . | . . . Piercing . | . . . Sneak Attacks 9 | . 9 . Combat Hostiles . | . . . Follow-up Attacks 10 | . 9 1 Damage Inflicted 2744 | 49 2261 434 Guns 305 | 49 . 256 Cannons . | . . . Explosions . | . . . Melee 2439 | . 2261 178 Ramming . | . . . Kinetic 279 | 23 . 256 Thermal 26 | 26 . . Explosive . | . . . Electromagnetic . | . . . Impact 2439 | . 2261 178 Slashing . | . . . Piercing . | . . . Highest Corruption . | . . . Average Corruption . | . . . Corruption Purged . | . . . Corruption Blocked . | . . . Overload Shots . | . . . Overflow Damage 476 | . 451 25 Projectiles . | . . . Explosions . | . . . Melee 476 | . 451 25 Knockbacks 9 | . 7 2 Impact 9 | . 7 2 Kinetic . | . . . Secondary . | . . . Self-Inflicted Damage . | . . . Shots . | . . . Rammed . | . . . Targets Rammed . | . . . Kicked . | . . . Crushed . | . . . Highest Temperature 246 | 70 2 246 Average Temperature 80 | 33 2 121 Received Heat Transfer 791 | . 261 530 Siege Activations . | . . . Martial Activations . | . . . Shielding Activations . | . . . Robots Disrupted . | . . . Combat Hostiles . | . . . Robots Corrupted 11 | . 11 . Combat Hostiles 8 | . 8 . Parts Fried 20 | . 20 . Impact Corruptions 27 | . 26 1 Robots Melted . | . . . Combat Hostiles . | . . . Parts Melted . | . . . Heat Transferred 74 | 74 . . Parts Sabotaged . | . . . Parts Stolen . | . . . Parts Stripped . | . . . Power Chain Reactions . | . . . Alert | -11 -10 -10 ------- Run | Yrd Mat Sub Maximum Alert Level 1 | . 1 . Low Security (%) 58 | 100 56 . Level 1 41 | . 43 . Level 2 . | . . . Level 3 . | . . . Level 4 . | . . . Level 5 . | . . . High Security . | . . . Max Security . | . . . Peak Influence 310 | 5 310 . Initial . | . . . Average 146 | . 155 . Influence Increases 636 | 5 631 . Destroy 0b10 Robot/C 380 | . 380 . Destroy 0b10 Robot/NC 40 | 5 35 . Destroy Leader 88 | . 88 . Successful Hack 31 | . 31 . Select Force Hacks 60 | . 60 . Destroy Structure 7 | . 7 . Lose Combat Pursuer 30 | . 30 . Influence Decreases 631 | 5 370 256 Entered New Map 126 | . . 126 Time Decay 435 | 5 350 80 Lost Part 70 | . 20 50 Squads Dispatched 6 | . 6 . Investigation 2 | . 2 . Extermination . | . . . Reinforcement 4 | . 4 . Assault . | . . . Garrison . | . . . Intercept . | . . . Searches Triggered . | . . . Construction Impeded . | . . . Haulers Reinforced . | . . . Active Scanning Responses . | . . . Cargo Convoy Interrupts . | . . . Stealth | -11 -10 -10 --------- Run | Yrd Mat Sub Distress Signals 2 | . 2 . Communications Jammed . | . . . Distress Signals . | . . . Times Spotted 31 | . 29 2 Peak Tracking Total 5 | . 5 2 Tactical Retreats 2 | . 2 . Traps | -11 -10 -10 ------- Run | Yrd Mat Sub Traps Triggered . | . . . Indirectly . | . . . Trap Hack Attempts . | . . . Triggered . | . . . Disarmed . | . . . Reprogrammed . | . . . Reused . | . . . Traps Extracted . | . . . Installed . | . . . Triggered . | . . . Machines | -11 -10 -10 ---------- Run | Yrd Mat Sub Machines Disabled . | . . . Max in Single Turn . | . . . Machines Repaired . | . . . Machines Dismantled . | . . . Machines Sabotaged . | . . . Overloaded Fab Kills . | . . . Hacking | -11 -10 -10 --------- Run | Yrd Mat Sub Machines Accessed 5 | . 5 . Terminals 3 | . 3 . Fabricators . | . . . Repair Stations . | . . . Recycling Units 2 | . 2 . Scanalyzers . | . . . Garrison Access . | . . . Total Hacks 9 | . 9 . Successful 6 | . 6 . Failed 3 | . 3 . Catastrophic . | . . . Database Lockouts . | . . . Manual 9 | . 9 . Terminals 6 | . 6 . Fabricators . | . . . Repair Stations . | . . . Recycling Units 3 | . 3 . Scanalyzers . | . . . Garrison Access . | . . . Terminal Hacks . | . . . Fabricator Hacks . | . . . Repair Station Hacks . | . . . Recycling Unit Hacks . | . . . Scanalyzer . | . . . Garrison Access Hacks . | . . . Unauthorized Hacks 6 | . 6 . Terminals 4 | . 4 . Botnet 1 | . 1 . Skim 3 | . 3 . Fabricators . | . . . Repair Stations . | . . . Recycling Units 2 | . 2 . Tunnel 2 | . 2 . Scanalyzers . | . . . Garrison Access . | . . . Data Cores Recovered . | . . . Used . | . . . Hacking Detections 3 | . 3 . Full Trace Events . | . . . Feedback Events . | . . . Feedback Blocked . | . . . Robot Schematics Acquired . | . . . Robots Built . | . . . Authchips . | . . . Time . | . . . Total Robot Build Rating . | . . . Part Schematics Acquired . | . . . Parts Built . | . . . Authchips . | . . . Time . | . . . Total Part Build Rating . | . . . Part Studies Acquired . | . . . Parts Repaired . | . . . Time . | . . . Parts Recycled . | . . . Recycled Matter . | . . . Retrieved Matter . | . . . Retrieved Components . | . . . Parts Scanalyzed . | . . . Part Schematics Acquired . | . . . Parts Damaged . | . . . Bothacking | -11 -10 -10 ------------ Run | Yrd Mat Sub Used RIF Installer . | . . . Robots Hacked . | . . . Non-combat . | . . . Combat . | . . . Robot Hacks Applied . | . . . Relay Couplers Released . | . . . Fabnet Peak Effective % . | . . . Robots Rewired . | . . . Allies Hacked . | . . . Hacks Repelled . | . . . Allies | -11 -10 -10 -------- Run | Yrd Mat Sub Total Allies . | . . . Largest Group . | . . . Highest-Rated Group . | . . . Highest-Rated Ally . | . . . Total Orders . | . . . Ally Attacks . | . . . Total Damage . | . . . Kills . | . . . Allies Corrupted . | . . . Allies Melted . | . . . Intel | -11 -10 -10 ------- Run | Yrd Mat Sub Active Infowar (turns) . | . . . Robot Analysis Total . | . . . Derelict Logs Recovered . | . . . Drone Launches . | . . . Drone Recoveries . | . . . Exploration | -11 -10 -10 ------------- Run | Yrd Mat Sub Turns Passed 1583 | 76 1343 164 Spaces Moved 768 | 39 677 52 Core 2 | 2 . . Treads 766 | 37 677 52 Legs . | . . . Wheels . | . . . Hover . | . . . Flight . | . . . Fastest Speed 50 | 50 160 160 Average Speed 159 | 154 160 160 Slowest Speed 160 | 160 160 160 Overloaded Moves . | . . . Propulsion Burnouts . | . . . Robots Hopped . | . . . Potential Cave-ins . | . . . Cave-ins Triggered . | . . . Exploration Rate (%) 35 | 4 93 10 Regions Visited 2 Branch Regions 1 Pre-discovered Areas 2 | . 2 . Known Exits Taken . | . . . Unknown Exits Taken 2 | 1 1 . Scrap Searched . | . . . Spaces Dug 9 | . 9 . Terrain Destroyed 9 | . 9 . Melee 9 | . 9 . Projectile . | . . . AOE . | . . . Terrain Rammed . | . . . Walls Destroyed . | . . . Machines Disabled . | . . . Actions | -11 -10 -10 --------- Run | Yrd Mat Sub Total 959 | 47 808 104 Wait 50 | . 21 29 Move 766 | 38 676 52 Hop . | . . . Pick Up 16 | . 15 1 Fast Attach 10 | 6 4 . Attach 4 | . 1 3 Detach 2 | . 2 . Swap 4 | . 2 2 Drop 5 | . 4 1 Fire 10 | 3 . 7 Melee 92 | . 83 9 Ram . | . . . Kick . | . . . Crush . | . . . Escape Stasis . | . . . Rewire . | . . . Trap . | . . . Miscellaneous . | . . . Route ------- -11/Scrapyard -10/Materials (discovered 5 exits: [*Mat x3] / [*Min] / [*Sub]) -10/Subcaves History --------- Turn | Location | Event 2 | -11/Scrapyard | Met Revision 17 42 | -11/Scrapyard | Discovered new exit (range 16) 77 | -11/Scrapyard | Entered Materials 314 | -10/Materials | Build established: Mutant 426 | -10/Materials | Discovered new exit (range 6) 718 | -10/Materials | Discovered new exit (range 10) 987 | -10/Materials | Discovered new exit (range 6) 1123 | -10/Materials | Discovered new exit (range 3) 1190 | -10/Materials | Core integrity fell below 50% 1413 | -10/Materials | Discovered new exit (range 4) 1420 | -10/Materials | Entered Subcaves 1421 | -10/Subcaves | Approached by a straggling Scientist 1462 | -10/Subcaves | Shifting Twisted Machinery released Sub. Machine Gun 1563 | -10/Subcaves | Core integrity fell below 20% 1584 | -10/Subcaves | Destroyed by 81-M6G(R) with Subdweller Beam Cannon Last Messages --------------- 01473_ Acquired Sub. Machine Gun. 01511_ 9S-QVS(c) destroyed. 01520_ Lgt. Treads destroyed. 01526_ AT-JU8(R) knocked back. 01532_ Subatomizers dissect the Wheel. 01532_ Flail follow-up attack on AT-JU8(R). 01532_ Flail destroyed. 01538_ AT-JU8(R) suffers critical hit (Smash). 01538_ Destroyed Sub. Monowheel. 01538_ AT-JU8(R) system corrupted by crushing effect. 01538_ Ion Engine destroyed. 01540_ AT-JU8(R) destroyed. 01543_ Subatomizers dissect the Wheel. 01549_ Dropped Hrd. Light Armor Plating. 01558_ Lgt. Treads destroyed. 01558_ 81-M6G(R) knocked back. 01568_ Critical hit (Meltdown: +260). 01576_ Destroyed Sub. Monowheel. 01578_ Lgt. Treads destroyed. Map ----- +----------------------------------------------------+ | ??????????????????# """ """"??????????????? | | ????????????##????# " " """"" """ ?????????????? | | ???????????## ????#""""" "##"" ###?????????????? | | ????? ###### ???##""" """##"" "#???????????????? | | ????? ????##" """"## """"#??????????????? | | ???? ###??# "###"###""""#??????????????? | | ???? "### ##??##?? ?""???????????????? | | ??? ###????????????????????????? | | ???# """"#????????????????????????? | | ????????## #????????????????????????? | | ????" ##" ##????????????????????????? | | ?????# ###?????????????????????????? | | ?????##"#" ###???????????????????????????? | | ???????## #????????#????????????????????? | | ???????# !%####???? ?????????????????????? | | ???????### = ##?? ##????????????????????? | | ????????# ### ## ???????????????? | | ????????# ???????????????? | | ????????### ??????????????? | | ??????????# ### ???????????????? | | ??????????# ##???# ???????????????? | | ??????????# # #???????????????????????? | | ??????????# # %#######?????????????????? | | ?????????# ## #; #;; ; #?????????????????? | | ????????# ## "## ;! #???????????????????? | | ???????# #?# ###?# @ ##???????????????????? | | ??????# #??# #????## #????????????????????? | | ??????## ????##????# R #????????????????????? | | ???????#??????????# ##????????????????????? | | ????????????????? ;;?????????????????????? | | ???????????????# ###????????????????????? | | ?????????????? ??????????????????????? | | ????????????? ??????????????????????? | | ????????????? ?????????????????????? | | ????????????? ?????????????????????? | | ????????????? ###????????????????????? | | ?????????????? ###??????????????????????? | | ????????????????#### ##?????????????????????????? | | ???????????????????###???????????????????????????? | | ?????????????????????????????????????????????????? | | ?????????????????????????????????????????????????? | | ?????????????????????????????????????????????????? | | ?????????????????????????????????????????????????? | | ?????????????????????????????????????????????????? | | ?????????????????????????????????????????????????? | | ?????????????????????????????????????????????????? | | ?????????????????????????????????????????????????? | | ?????????????????????????????????????????????????? | | ?????????????????????????????????????????????????? | | ?????????????????????????????????????????????????? | +----------------------------------------------------+ Best States ------------- Heat Dissipation 25 Energy Generation 10 Energy Capacity 250 Matter Stores 300 Matter Capacity 300 Sight Range 16 Terrain Scan Density 10 Armor Coverage 150 Evasion (%) 40 Recoil Reduction 2 Item Schematics ----------------- None Robot Schematics ------------------ None Fabricated ------------ Nothing Repaired ---------- Nothing Studied --------- None Alien Tech Used ----------------- None Achievements -------------- None Challenges ------------ None Game ------ Seed LegExpertCyclogen Manual? 0 Play Time 00:13:23 Cumulative 691.6 hours Start 2025.11.21 @ 14:01:39 End 2025.11.21 @ 18:44:46 Sessions 3 Manual Loads 0 Difficulty Rogue Special Mode None Game No. 295 Rogue 295 Adventurer 0 Explorer 0 Win Type - Total 70 Types 36/4/11/5/6/1/1/3/0/3 Lore% 96 Gallery% 89 Achievement% 79 Wizard Run 0 Options --------- Layout 1 ASCII 0 Keyboard 0 Movement Numpad Keybinds 0 Fullscreen 1 Font 24/Smallcaps Map View 50x35 Zoom Use 0% Tactical HUD 1 Map Filters NONE Filters NONE Steam 1 RUN: 06c00195-a994-4a6d-8058-09f27d95ba69